fUST/lending_fUST_20241116
["ID","MTS","AMOUNT","RATE_DAILY","PERIOD"]
[342332577,1731737438830,-300.0,0.00011834,2]
[342332578,1731737438839,-372.2153425,0.00011835,2]
[342332579,1731737438851,-7330.942138,0.00011835,2]
[342332749,1731737440606,-17196.8425195,0.00011835,2]
[342332751,1731737440619,-609.0965644,0.00012405,2]
[342332753,1731737440631,-5138.45852838,0.00012511,2]
[342332755,1731737440641,-658.2991499,0.00012899,2]
[342332757,1731737440651,-1845.14753217,0.000129,2]
[342332759,1731737440661,-420.0,0.00012993,2]
[342332761,1731737440673,-420.0,0.00013017,2]
[342332763,1731737440683,-153.0,0.000131,2]
[342332765,1731737440693,-171.10530915,0.00013129,2]
[342332766,1731737440703,-1000.0,0.00013151,2]
[342332768,1731737440713,-1000.0,0.00013178,2]
[342332770,1731737440723,-621.86789186,0.00013184,2]
[342332773,1731737440734,-1000.0,0.00013192,2]
[342332774,1731737440744,-1000.0,0.00013194,2]
[342332776,1731737440753,-153.0,0.000132,2]
[342332778,1731737440763,-153.0,0.000132,2]
[342332780,1731737440773,-153.0,0.000132,2]
[342332782,1731737440782,-544.55287558,0.00013208,2]
[342332858,1731737443727,-52.39126438,0.00013208,2]
[342332859,1731737443738,-1000.0,0.00013208,2]
[342332860,1731737443748,-145.71279641,0.00013209,2]
[342332942,1731738624839,24900.0,0.00011017,2]
[342332960,1731738631803,-189.35605915,0.00011078,2]
[342332961,1731738631812,-343.35328174,0.00011181,2]
[342333122,1731738639842,-156.64671826,0.00011181,2]
[342333123,1731738639852,-496.02067994,0.00011343,2]
[342333124,1731738639865,-904.6321097,0.00011343,2]
[342333125,1731738639877,-593.8141806,0.00011343,2]
[342333126,1731738639888,-546.0,0.00011343,2]
[342333127,1731738639900,-507.74244554,0.00011343,2]
[342333128,1731738639913,-468.42300756,0.00011343,2]
[342333129,1731738639925,-182.80408756,0.00011343,2]
[342333130,1731738639936,-276.44891246,0.00011544,2]
[342333131,1731738639951,-23.55108754,0.00011544,2]
[342333132,1731738639960,-1138.12322665,0.00011545,2]
[342333133,1731738639971,-744.26,0.00011545,2]
[342333134,1731738639984,-788.854044,0.00011545,2]
[342333135,1731738639995,-508.52,0.00011545,2]
[342333136,1731738640007,-553.77580003,0.00011545,2]
[342333137,1731738640021,-995.0,0.00011545,2]
[342333138,1731738640034,-535.2,0.00011545,2]
[342333139,1731738640045,-930.59669582,0.00011545,2]
[342333140,1731738640054,-500.0,0.00011769,2]
[342333141,1731738640064,-518.92306418,0.00012383,2]
[342333158,1731738642942,-1616.39561602,0.00012383,2]
[342333159,1731738642951,-500.0,0.00012388,2]
[342333160,1731738642961,-256.1812999,0.00012497,2]
[342333161,1731738642970,-153.0,0.000126,2]
[342333162,1731738642980,-420.0,0.00012699,2]
[342333163,1731738642990,-306.0000001,0.00012741,2]
[342333164,1731738643001,-833.81491242,0.00012741,2]
[342333165,1731738643010,-154.8150616,0.00012778,2]
[342333166,1731738643023,-2010.01934895,0.000129,2]
[342333167,1731738643032,-500.0,0.00013008,2]
[342333168,1731738643043,-1000.0,0.00013181,2]
[342333169,1731738643052,-854.28720359,0.00013209,2]
[342333170,1731738643062,-158.30853723,0.00013211,2]
[342333172,1731738643071,-496.91492942,0.00013237,2]
[342333174,1731738643079,-1000.0,0.00013249,2]
[342333176,1731738643089,-1000.0,0.00013285,2]
[342333178,1731738643098,-641.0,0.000133,2]
[342333180,1731738643108,-1000.0,0.00013306,2]
[342333182,1731738643118,-1000.0,0.00013311,2]
[342333183,1731738643127,-1000.0,0.00013345,2]
[342333184,1731738643136,-1000.0,0.00013369,2]
[342333185,1731738643146,-1000.0,0.00013377,2]
[342333186,1731738643155,-503.08507058,0.00013437,2]
[342333187,1731738643166,-346.39807428,0.00013487,2]
[342333188,1731738643175,-29679.16705816,0.00013488,2]
[342333189,1731738643184,-1000.0,0.00013488,2]
[342333190,1731738643194,-2344.16672683,0.00013488,2]
[342333191,1731738643203,-474.6649575,0.00013544,2]
[342333192,1731738643212,-224.232,0.00013544,2]
[342333193,1731738643222,-11936.12655611,0.00013547,2]
[342333194,1731738643232,-152.0,0.00013549,2]
[342333195,1731738643241,-196.9645208,0.00013577,2]
[342333196,1731738643250,-17569.15718651,0.00013588,2]
[342333197,1731738643262,-4636.50312595,0.00013588,2]
[342333420,1731739838093,-331.4659174,0.00012299,2]
[342333421,1731739838103,-300.0,0.0001239,2]
[342333422,1731739838113,-58.1580839,0.0001239,2]
[342333440,1731739840054,-241.8419161,0.0001239,2]
[342333441,1731739840064,-24900.0,0.00012391,2]
[342333442,1731739840074,-179.386,0.0001312,2]
[342333443,1731739840084,-340.74781905,0.000133,2]
[342333444,1731739840094,-555.87660828,0.00013388,2]
[342333445,1731739840103,-166090.51113866,0.00013388,2]
[342333446,1731739840115,-5232.33761122,0.00013388,2]
[342333468,1731739846069,-19552.23234489,0.00013388,2]
[342333472,1731740439762,6337.31,0.00026,60]
[342333482,1731740739546,735.65,0.00010959,2]
[342333638,1731741038500,-290.00894769,0.00012241,2]
[342333639,1731741038509,-209.61986355,0.00012365,2]
[342333640,1731741038521,-90.38013645,0.00012365,2]
[342333641,1731741038531,-300.0,0.00012365,2]
[342333642,1731741038540,-4043.29004655,0.00012366,2]
[342333656,1731741043112,-616.45990209,0.00012366,2]
[342333657,1731741043125,-10669.8393808,0.00012366,2]
[342333658,1731741043163,-9570.41067056,0.00012366,2]
[342333659,1731741043173,-179.386,0.0001312,2]
[342333660,1731741043183,-293.11515944,0.00013288,2]
[342333661,1731741043193,-293.27938218,0.00013288,2]
[342333662,1731741043205,-1758.76693034,0.000133,2]
[342333663,1731741043214,-11431.0,0.000133,2]
[342333664,1731741043223,-388.04816031,0.000133,2]
[342333665,1731741043233,-10426.31355189,0.00013388,2]
[342333680,1731741068386,520.04,0.00010959,2]
[342333690,1731741753116,162.6,0.00011068,2]
[342333693,1731742019654,2000.0,0.00026,60]
[342333730,1731742232299,-178.4067164,0.00011738,2]
[342333732,1731742232309,-300.0,0.00012008,2]
[342333734,1731742232318,-300.0,0.00012008,2]
[342333736,1731742232328,-8023.95510772,0.00012009,2]
[342333748,1731742232432,-657.89060043,0.00012009,2]
[342333906,1731742239011,-10713.42869495,0.00012009,2]
[342333907,1731742239021,-1730.9612688,0.00012178,2]
[342333908,1731742239031,-178.4067164,0.00012344,2]
[342333909,1731742239041,-420.0,0.00013182,2]
[342333910,1731742239051,-1538.92106403,0.000132,2]
[342333911,1731742239061,-1204.388,0.00013204,2]
[342333912,1731742239071,-420.0,0.00013208,2]
[342333913,1731742239084,-1000.0,0.00013256,2]
[342333914,1731742239093,-258.69877354,0.000133,2]
[342333915,1731742239103,-236852.69510592,0.000133,2]
[342333916,1731742239115,-547457.75489408,0.000133,2]
[342333917,1731742239126,-150.112233,0.000133,2]
[342333918,1731742239135,-150.112233,0.000133,2]
[342333919,1731742239146,-150.112233,0.000133,2]
[342333920,1731742239156,-150.112233,0.000133,2]
[342333921,1731742239166,-164.26035,0.000133,2]
[342333922,1731742239176,-500.0,0.00013373,2]
[342333923,1731742239186,-500.0,0.00013373,2]
[342333924,1731742239197,-500.0,0.00013373,2]
[342333925,1731742239206,-501.69173863,0.00013373,2]
[342333926,1731742239219,-640398.16514861,0.00013388,2]
[342333927,1731742239228,-150.112233,0.000134,2]
[342333928,1731742239238,-150.112233,0.000134,2]
[342333929,1731742239249,-150.112233,0.000134,2]
[342333930,1731742239262,-150.112233,0.000134,2]
[342333931,1731742239274,-150.112233,0.000134,2]
[342333932,1731742239284,-150.112268,0.000134,2]
[342333933,1731742239293,-150.112233,0.000134,2]
[342333934,1731742239302,-150.112233,0.000134,2]
[342333935,1731742239312,-150.112239,0.000134,2]
[342333936,1731742239322,-150.112233,0.000134,2]
[342333937,1731742239331,-150.112233,0.000134,2]
[342333938,1731742239341,-150.112233,0.000134,2]
[342333939,1731742239351,-177.951941,0.000134,2]
[342333940,1731742239360,-196.9645208,0.00013587,2]
[342333941,1731742239370,-179.386,0.00013598,2]
[342333942,1731742239380,-400.16830942,0.000136,2]
[342333943,1731742239389,-1000.0,0.000136,2]
[342333944,1731742239398,-1000.0,0.000136,3]
[342333945,1731742239407,-500.0,0.00013658,2]
[342333946,1731742239417,-500.0,0.00013673,2]
[342333947,1731742239426,-160.47827605,0.00013673,2]
[342333948,1731742239436,-500.0,0.00013673,2]
[342333949,1731742239445,-506.2316204,0.00013673,2]
[342333950,1731742239455,-500.0,0.00013698,2]
[342333951,1731742239470,-165.37842286,0.00013698,2]
[342333952,1731742239480,-168.325534,0.00013698,2]
[342333953,1731742239489,-174.17068432,0.00013698,2]
[342333954,1731742239498,-500.0,0.00013698,2]
[342333955,1731742239507,-500.0,0.00013698,2]
[342333956,1731742239516,-500.0,0.00013698,2]
[342333957,1731742239525,-534.08288727,0.00013698,2]
[342333958,1731742239534,-500.0,0.00013698,2]
[342333959,1731742239543,-500.0,0.00013698,2]
[342333960,1731742239553,-500.0,0.00013698,2]
[342333961,1731742239562,-500.0,0.00013698,2]
[342333962,1731742239571,-500.0,0.00013698,2]
[342333963,1731742239580,-500.0,0.00013698,2]
[342333964,1731742239589,-500.0,0.00013698,2]
[342333965,1731742239598,-500.0,0.00013698,2]
[342333966,1731742239607,-500.0,0.00013698,2]
[342333967,1731742239616,-615.17913296,0.00013698,2]
[342333968,1731742239625,-500.0,0.00013698,2]
[342333969,1731742239772,-500.0,0.00013698,2]
[342333970,1731742239781,-500.0,0.00013698,2]
[342333971,1731742239790,-500.0,0.00013698,2]
[342333972,1731742239799,-500.0,0.00013698,2]
[342333974,1731742239808,-617.3675485,0.00013698,2]
[342333975,1731742239818,-500.0,0.00013698,2]
[342333976,1731742239827,-500.0,0.00013698,2]
[342333977,1731742239836,-500.0,0.00013698,2]
[342333978,1731742239846,-500.0,0.00013698,2]
[342333979,1731742239855,-500.0,0.00013698,2]
[342333980,1731742239864,-500.0,0.00013698,2]
[342333982,1731742239874,-324.33814443,0.00013698,2]
[342333984,1731742239883,-500.0,0.00013698,2]
[342333986,1731742239892,-327.79180859,0.00013698,2]
[342333988,1731742239901,-500.0,0.00013698,2]
[342333990,1731742239910,-500.0,0.00013698,2]
[342333992,1731742239920,-500.0,0.00013698,2]
[342333994,1731742239929,-500.0,0.00013698,2]
[342333997,1731742239938,-250.0,0.00013698,2]
[342334000,1731742239948,-151.0,0.00013698,2]
[342334002,1731742239957,-151.0,0.00013698,2]
[342334005,1731742239969,-151.0,0.00013698,2]
[342334008,1731742239978,-151.0,0.00013698,2]
[342334010,1731742239987,-151.0,0.00013698,2]
[342334011,1731742239997,-162.039829,0.00013698,2]
[342334012,1731742240006,-509.10101451,0.00013698,2]
[342334013,1731742240017,-522.93805587,0.00013698,2]
[342334014,1731742240026,-500.0,0.00013698,2]
[342334015,1731742240036,-500.0,0.00013698,2]
[342334016,1731742240046,-500.0,0.00013698,2]
[342334017,1731742240059,-503.01494184,0.00013698,2]
[342334018,1731742240068,-540.4,0.00013698,2]
[342334019,1731742240078,-379.6438938,0.00013698,2]
[342334020,1731742240087,-500.0,0.00013698,2]
[342334021,1731742240099,-512.47502579,0.00013698,2]
[342334022,1731742240111,-510.07784804,0.00013698,2]
[342334023,1731742240125,-500.0,0.00013698,2]
[342334024,1731742240135,-500.0,0.00013698,2]
[342334026,1731742240145,-216.70809453,0.00013698,2]
[342334028,1731742240154,-508.60578005,0.00013698,2]
[342334030,1731742240163,-500.0,0.00013698,2]
[342334031,1731742240173,-505.33073268,0.00013698,2]
[342334033,1731742240183,-500.0,0.00013698,2]
[342334035,1731742240193,-500.0,0.00013698,2]
[342334037,1731742240202,-500.0,0.00013698,2]
[342334038,1731742240213,-500.0,0.00013698,2]
[342334039,1731742240222,-504.04337529,0.00013698,2]
[342334040,1731742240231,-510.03655155,0.00013698,2]
[342334041,1731742240241,-500.0,0.00013698,2]
[342334042,1731742240250,-549.5,0.00013698,2]
[342334043,1731742240259,-506.28308853,0.00013698,2]
[342334044,1731742240269,-500.0,0.00013698,2]
[342334045,1731742240278,-304.43812191,0.00013698,2]
[342334046,1731742240288,-500.0,0.00013698,2]
[342334047,1731742240297,-500.0,0.00013698,2]
[342334048,1731742240307,-500.0,0.00013698,2]
[342334049,1731742240316,-500.0,0.00013698,2]
[342334050,1731742240325,-550.34,0.00013698,2]
[342334051,1731742240335,-500.0,0.00013698,2]
[342334052,1731742240345,-500.0,0.00013698,2]
[342334053,1731742240354,-500.0,0.00013698,2]
[342334054,1731742240364,-500.0,0.00013698,2]
[342334056,1731742240374,-588.8,0.00013698,2]
[342334058,1731742240384,-459.99073774,0.00013698,2]
[342334059,1731742240395,-277.06195458,0.00013698,2]
[342334060,1731742240405,-3015.95,0.00013698,2]
[342334061,1731742240414,-366.75717785,0.00013698,2]
[342334062,1731742240424,-500.0,0.00013698,2]
[342334063,1731742240433,-512.64618252,0.00013698,2]
[342334064,1731742240443,-500.0,0.00013698,2]
[342334065,1731742240452,-640.60941052,0.00013698,2]
[342334066,1731742240463,-524.92251574,0.00013698,2]
[342334067,1731742240473,-500.0,0.00013698,2]
[342334068,1731742240482,-202.42751582,0.00013698,2]
[342334069,1731742240492,-500.0,0.00013698,2]
[342334070,1731742240503,-494.2,0.00013698,2]
[342334071,1731742240512,-500.0,0.00013698,2]
[342334072,1731742240521,-500.0,0.00013698,2]
[342334073,1731742240531,-500.0,0.00013698,2]
[342334074,1731742240541,-500.0,0.00013698,2]
[342334075,1731742240550,-501.40876277,0.00013698,2]
[342334076,1731742240560,-2336.0,0.00013698,2]
[342334077,1731742240569,-500.0,0.00013698,2]
[342334078,1731742240578,-1806.28,0.00013698,2]
[342334079,1731742240587,-500.0,0.00013698,2]
[342334080,1731742240597,-508.53153483,0.00013698,2]
[342334081,1731742240607,-500.0,0.00013698,2]
[342334082,1731742240616,-534.35316211,0.00013698,2]
[342334083,1731742240626,-500.0,0.00013698,2]
[342334084,1731742240635,-511.35223628,0.00013698,2]
[342334085,1731742240645,-500.0,0.00013698,2]
[342334086,1731742240654,-1594.9,0.00013698,2]
[342334087,1731742240664,-500.0,0.00013698,2]
[342334088,1731742240673,-500.0,0.00013698,2]
[342334089,1731742240682,-500.0,0.00013698,2]
[342334090,1731742240691,-500.0,0.00013698,2]
[342334091,1731742240700,-422.04845641,0.00013698,2]
[342334092,1731742240711,-500.0,0.00013698,2]
[342334093,1731742240720,-508.05244602,0.00013698,2]
[342334094,1731742240730,-646.59966135,0.00013698,2]
[342334095,1731742240739,-500.0,0.00013698,2]
[342334096,1731742240748,-476.91185478,0.00013698,2]
[342334097,1731742240760,-500.0,0.00013698,2]
[342334098,1731742240769,-503.15511171,0.00013698,2]
[342334099,1731742240779,-500.0,0.00013698,2]
[342334100,1731742240789,-563.24,0.00013698,2]
[342334101,1731742240799,-500.0,0.00013698,2]
[342334102,1731742240808,-500.0,0.00013698,2]
[342334103,1731742240817,-500.0,0.00013698,2]
[342334104,1731742240827,-500.0,0.00013698,2]
[342334105,1731742240837,-500.0,0.00013698,2]
[342334106,1731742240847,-500.0,0.00013698,2]
[342334107,1731742240856,-590.78,0.00013698,2]
[342334108,1731742240865,-500.0,0.00013698,2]
[342334109,1731742240875,-500.0,0.00013698,2]
[342334110,1731742240884,-500.0,0.00013698,2]
[342334111,1731742240894,-6512.06,0.00013698,2]
[342334112,1731742240904,-500.0,0.00013698,2]
[342334113,1731742240914,-500.0,0.00013698,2]
[342334114,1731742240923,-500.0,0.00013698,2]
[342334115,1731742240932,-553.7130897,0.00013698,2]
[342334116,1731742240941,-151.0,0.00013698,2]
[342334117,1731742240950,-1240.2,0.00013698,2]
[342334118,1731742240960,-507.57530428,0.00013698,2]
[342334119,1731742240969,-974.33,0.00013698,2]
[342334120,1731742240978,-312.25700333,0.00013698,2]
[342334121,1731742240988,-1340.61,0.00013698,2]
[342334122,1731742240997,-500.0,0.00013698,2]
[342334123,1731742241006,-370.25003507,0.00013698,2]
[342334124,1731742241015,-958.04,0.00013698,2]
[342334125,1731742241026,-500.0,0.00013698,2]
[342334126,1731742241035,-500.0,0.00013698,2]
[342334127,1731742241044,-1174.16,0.00013698,2]
[342334128,1731742241054,-511.63653911,0.00013698,2]
[342334129,1731742241063,-1165.5,0.00013698,2]
[342334130,1731742241072,-1526.92,0.00013698,2]
[342334131,1731742241086,-500.0,0.00013698,2]
[342334132,1731742241095,-645.92422543,0.00013698,2]
[342334133,1731742241105,-1833.71,0.00013698,2]
[342334134,1731742241114,-500.0,0.00013698,2]
[342334135,1731742241125,-22897.32,0.00013698,2]
[342334136,1731742241134,-2967.15,0.00013698,2]
[342334137,1731742241143,-500.0,0.00013698,2]
[342334138,1731742241154,-1843.41,0.00013698,2]
[342334139,1731742241163,-500.0,0.00013698,2]
[342334140,1731742241173,-500.0,0.00013698,2]
[342334141,1731742241182,-507.93208438,0.00013698,2]
[342334142,1731742241191,-500.0,0.00013698,2]
[342334143,1731742241200,-2458.73,0.00013698,2]
[342334144,1731742241210,-503.55627693,0.00013698,2]
[342334145,1731742241219,-500.0,0.00013698,2]
[342334146,1731742241228,-500.0,0.00013698,2]
[342334147,1731742241237,-500.0,0.00013698,2]
[342334148,1731742241245,-500.0,0.00013698,2]
[342334149,1731742241255,-974.72,0.00013698,2]
[342334150,1731742241264,-500.0,0.00013698,2]
[342334151,1731742241273,-500.0,0.00013698,2]
[342334152,1731742241282,-1250.95,0.00013698,2]
[342334153,1731742241291,-1971.56,0.00013698,2]
[342334154,1731742241300,-500.0,0.00013698,2]
[342334155,1731742241309,-984.86,0.00013698,2]
[342334156,1731742241317,-500.0,0.00013698,2]
[342334157,1731742241326,-2537.8,0.00013698,2]
[342334158,1731742241335,-500.0,0.00013698,2]
[342334159,1731742241345,-500.0,0.00013698,2]
[342334160,1731742241354,-500.0,0.00013698,2]
[342334161,1731742241363,-2364.56,0.00013698,2]
[342334162,1731742241372,-548.10547488,0.00013698,2]
[342334163,1731742241382,-455.27139119,0.00013698,2]
[342334164,1731742241391,-500.0,0.00013698,2]
[342334165,1731742241402,-3087.31,0.00013698,2]
[342334166,1731742241411,-606.67113295,0.00013698,2]
[342334167,1731742241420,-500.0,0.00013698,2]
[342334168,1731742241429,-506.1932296,0.00013698,2]
[342334169,1731742241438,-12183.9,0.00013698,2]
[342334170,1731742241448,-500.0,0.00013698,2]
[342334171,1731742241456,-500.11121485,0.00013698,2]
[342334172,1731742241467,-318.16351091,0.00013698,2]
[342334173,1731742241476,-500.0,0.00013698,2]
[342334174,1731742241485,-5265.81,0.00013698,2]
[342334175,1731742241494,-638.63,0.00013698,2]
[342334176,1731742241504,-500.0,0.00013698,2]
[342334177,1731742241512,-500.0,0.00013698,2]
[342334178,1731742241521,-500.0,0.00013698,2]
[342334179,1731742241530,-500.0,0.00013698,2]
[342334180,1731742241539,-760.79,0.00013698,2]
[342334181,1731742241548,-2218.31,0.00013698,2]
[342334182,1731742241556,-500.0,0.00013698,2]
[342334183,1731742241566,-1939.28,0.00013698,2]
[342334184,1731742241575,-500.0,0.00013698,2]
[342334185,1731742241584,-494.54365897,0.00013698,2]
[342334186,1731742241592,-542.00922101,0.00013699,2]
[342334187,1731742241601,-153.0,0.00013699,2]
[342334188,1731742241610,-153.0,0.00013699,2]
[342334189,1731742241619,-153.0,0.00013699,2]
[342334190,1731742241628,-153.0,0.00013699,2]
[342334191,1731742241637,-151.0,0.00013699,2]
[342334192,1731742241646,-151.0,0.00013699,2]
[342334193,1731742241655,-152.938004,0.00013699,2]
[342334194,1731742241664,-151.0,0.00013699,2]
[342334195,1731742241673,-152.89163,0.00013699,2]
[342334196,1731742241682,-5603.587916,0.00013699,2]
[342334197,1731742241691,-1000.0,0.00013699,2]
[342334198,1731742241700,-1000.0,0.00013699,2]
[342334199,1731742241709,-1000.0,0.00013699,2]
[342334200,1731742241718,-1000.0,0.00013699,2]
[342334201,1731742241727,-1000.0,0.00013699,2]
[342334202,1731742241737,-411.186515,0.00013699,2]
[342334203,1731742241746,-151.0,0.00013699,2]
[342334204,1731742241757,-255.342621,0.00013699,2]
[342334205,1731742241766,-9120.555775,0.00013699,2]
[342334206,1731742241775,-2171.28581,0.00013699,2]
[342334207,1731742241784,-500.0,0.00013699,2]
[342334208,1731742241794,-500.0,0.00013699,2]
[342334209,1731742241803,-500.0,0.00013699,2]
[342334210,1731742241813,-500.0,0.00013699,2]
[342334211,1731742241823,-500.0,0.00013699,2]
[342334212,1731742241833,-500.0,0.00013699,2]
[342334213,1731742241843,-500.0,0.00013699,2]
[342334214,1731742241854,-500.0,0.00013699,2]
[342334215,1731742241864,-500.0,0.00013699,2]
[342334216,1731742241875,-500.0,0.00013699,2]
[342334217,1731742241884,-500.0,0.00013699,2]
[342334218,1731742241894,-500.0,0.00013699,2]
[342334219,1731742241904,-500.0,0.00013699,2]
[342334220,1731742241914,-500.0,0.00013699,2]
[342334221,1731742241924,-500.0,0.00013699,2]
[342334222,1731742241933,-500.0,0.00013699,2]
[342334223,1731742241943,-500.0,0.00013699,2]
[342334224,1731742241953,-500.0,0.00013699,2]
[342334225,1731742241963,-500.0,0.00013699,2]
[342334226,1731742241973,-500.0,0.00013699,2]
[342334227,1731742241982,-500.0,0.00013699,2]
[342334228,1731742241991,-500.0,0.00013699,2]
[342334229,1731742242001,-500.0,0.00013699,2]
[342334230,1731742242010,-500.0,0.00013699,2]
[342334231,1731742242019,-500.0,0.00013699,2]
[342334232,1731742242028,-500.0,0.00013699,2]
[342334233,1731742242038,-359.28975726,0.00013699,2]
[342334234,1731742242048,-500.0,0.00013699,2]
[342334235,1731742242060,-443.42336337,0.00013699,2]
[342334236,1731742242070,-500.0,0.00013699,2]
[342334237,1731742242083,-500.0,0.00013699,2]
[342334238,1731742242093,-620.0,0.00013699,2]
[342334239,1731742242104,-200.0,0.00013699,2]
[342334240,1731742242114,-500.0,0.00013699,2]
[342334241,1731742242123,-500.0,0.00013699,2]
[342334242,1731742242134,-152.98845185,0.00013699,2]
[342334243,1731742242143,-619.46580423,0.00013699,2]
[342334244,1731742242154,-500.0,0.00013699,2]
[342334245,1731742242164,-500.0,0.00013699,2]
[342334246,1731742242174,-500.0,0.00013699,2]
[342334247,1731742242185,-500.0,0.00013699,2]
[342334248,1731742242194,-500.0,0.00013699,2]
[342334249,1731742242203,-500.0,0.00013699,2]
[342334250,1731742242214,-500.0,0.00013699,2]
[342334251,1731742242223,-500.0,0.00013699,2]
[342334252,1731742242232,-500.0,0.00013699,2]
[342334253,1731742242241,-500.0,0.00013699,2]
[342334254,1731742242251,-500.0,0.00013699,2]
[342334255,1731742242260,-500.0,0.00013699,2]
[342334256,1731742242270,-500.0,0.00013699,2]
[342334257,1731742242279,-500.0,0.00013699,2]
[342334258,1731742242288,-500.0,0.00013699,2]
[342334259,1731742242298,-500.0,0.00013699,2]
[342334260,1731742242307,-500.0,0.00013699,2]
[342334261,1731742242315,-500.0,0.00013699,2]
[342334262,1731742242325,-500.0,0.00013699,2]
[342334263,1731742242334,-500.0,0.00013699,2]
[342334264,1731742242343,-500.0,0.00013699,2]
[342334265,1731742242352,-500.0,0.00013699,2]
[342334266,1731742242361,-500.0,0.00013699,2]
[342334267,1731742242370,-500.0,0.00013699,2]
[342334268,1731742242379,-500.0,0.00013699,2]
[342334269,1731742242388,-500.0,0.00013699,2]
[342334270,1731742242397,-500.0,0.00013699,2]
[342334271,1731742242407,-500.0,0.00013699,2]
[342334272,1731742242416,-500.0,0.00013699,2]
[342334273,1731742242425,-221.76536866,0.00013699,2]
[342334274,1731742242435,-500.0,0.00013699,2]
[342334275,1731742242444,-500.0,0.00013699,2]
[342334276,1731742242454,-500.0,0.00013699,2]
[342334277,1731742242465,-500.0,0.00013699,2]
[342334278,1731742242474,-500.0,0.00013699,2]
[342334279,1731742242483,-500.0,0.00013699,2]
[342334280,1731742242492,-500.0,0.00013699,2]
[342334281,1731742242502,-310.0,0.00013699,2]
[342334282,1731742242512,-500.0,0.00013699,2]
[342334283,1731742242521,-500.0,0.00013699,2]
[342334284,1731742242530,-424.19104924,0.00013699,2]
[342334285,1731742242539,-500.0,0.00013699,2]
[342334286,1731742242548,-500.0,0.00013699,2]
[342334287,1731742242558,-500.0,0.00013699,2]
[342334288,1731742242567,-500.0,0.00013699,2]
[342334289,1731742242577,-155.715019,0.000137,2]
[342334290,1731742242586,-2457.88793758,0.00013704,2]
[342334291,1731742242595,-193.562461,0.00013721,2]
[342334292,1731742242605,-198.044685,0.00013721,2]
[342334293,1731742242614,-290.343692,0.00013721,2]
[342334294,1731742242624,-232.274953,0.00013721,2]
[342334295,1731742242634,-475.307224,0.00013721,2]
[342334296,1731742242644,-1000.0,0.0001378,2]
[342334297,1731742242653,-6042.86109987,0.00013798,2]
[342334298,1731742242664,-150.112285,0.000138,2]
[342334299,1731742242674,-150.112233,0.000138,2]
[342334300,1731742242685,-150.112233,0.000138,2]
[342334301,1731742242695,-193.562461,0.00013893,2]
[342334302,1731742242704,-232.274953,0.00013893,2]
[342334303,1731742242718,-475.307224,0.00013893,2]
[342334304,1731742242729,-83297.48189043,0.000139,2]
[342334305,1731742242738,-1000.0,0.00013921,2]
[342334306,1731742242747,-501.85198945,0.00013921,2]
[342334308,1731742242757,-373.45472232,0.00013921,2]
[342334310,1731742242766,-160.0,0.00013933,3]
[342334311,1731742242776,-507.30760628,0.00013972,2]
[342334312,1731742242786,-500.0,0.00013972,2]
[342334313,1731742242796,-300.60380087,0.00013972,2]
[342334315,1731742242806,-540.4,0.00013972,2]
[342334316,1731742242816,-500.0,0.00013972,2]
[342334317,1731742242826,-500.0,0.00013972,2]